fUST/lending_fUST_20240512
["ID","MTS","AMOUNT","RATE_DAILY","PERIOD"]
[326832615,1715476231844,-541.18495375,0.00017867,2]
[326832616,1715476231853,-184.09948479,0.00017871,2]
[326832617,1715476231864,-184.09948476,0.00017871,2]
[326832618,1715476231875,-184.09948476,0.00017872,2]
[326832619,1715476231886,-184.09948476,0.00017872,2]
[326832620,1715476231895,-184.09948476,0.00017872,2]
[326832621,1715476231905,-4522.70448273,0.00017959,2]
[326832622,1715476231919,-576.58072311,0.00017959,2]
[326832623,1715476231935,-4287.76130523,0.00017959,2]
[326832624,1715476231945,-62534.74731765,0.0001796,2]
[326832625,1715476231955,-59325.71232151,0.00017961,2]
[326832626,1715476231965,-20224.83958463,0.00017962,2]
[326832627,1715476231975,-11035.01693772,0.00017963,2]
[326832628,1715476231984,-1147.80069477,0.00017964,2]
[326832629,1715476231993,-2014.0,0.00018,2]
[326832630,1715476232003,-150.0,0.000189,2]
[326832631,1715476232012,-246.83498746,0.00019178,2]
[326832632,1715476232021,-500.0,0.00019178,2]
[326832633,1715476232030,-500.0,0.00019178,2]
[326832634,1715476232041,-500.0,0.00019178,2]
[326832635,1715476232051,-507.25257276,0.00019178,2]
[326832636,1715476232060,-833.42845868,0.00019349,2]
[326832637,1715476232069,-151.0,0.00019539,2]
[326832638,1715476232078,-151.0,0.00019539,2]
[326832639,1715476232087,-151.0,0.00019539,2]
[326832640,1715476232097,-151.0,0.00019539,2]
[326832641,1715476232107,-151.0,0.00019539,2]
[326832642,1715476232117,-151.0,0.00019539,2]
[326832643,1715476232126,-151.0,0.00019539,2]
[326832644,1715476232136,-1895.18893597,0.0001954,2]
[326832645,1715476232147,-151.0,0.00019648,2]
[326832646,1715476232157,-165.438453,0.00019648,2]
[326832647,1715476232166,-151.0,0.00019648,2]
[326832648,1715476232175,-152.757917,0.00019648,2]
[326832649,1715476232184,-151.0,0.00019648,2]
[326832650,1715476232193,-151.0,0.00019648,2]
[326832651,1715476232202,-161.964748,0.00019648,2]
[326832652,1715476232211,-161.964748,0.00019648,2]
[326832653,1715476232221,-155.951997,0.00019648,2]
[326832654,1715476232231,-151.0,0.00019648,2]
[326832655,1715476232242,-6560.43715484,0.00019649,2]
[326832656,1715476232251,-151.0,0.0001965,2]
[326832657,1715476232260,-151.0,0.0001965,2]
[326832658,1715476232271,-151.0,0.0001965,2]
[326832659,1715476232280,-309.4430026,0.00019651,2]
[326832660,1715476232291,-2414.56845731,0.00019653,2]
[326832661,1715476232300,-1713.81519438,0.00019757,2]
[326832662,1715476232309,-172.30777111,0.00019799,2]
[326832663,1715476232319,-500.0,0.000199,2]
[326832664,1715476232329,-500.0,0.000199,2]
[326832665,1715476232338,-1348.39587866,0.00019973,2]
[326832666,1715476232348,-241.94041048,0.00019973,2]
[326832667,1715476232358,-155.856606,0.00019973,2]
[326832668,1715476232367,-151.0,0.00019973,2]
[326832669,1715476232376,-151.456187,0.00019973,2]
[326832670,1715476232386,-151.0,0.00019973,2]
[326832671,1715476232397,-151.0,0.00019973,2]
[326832672,1715476232407,-151.0,0.00019973,2]
[326832673,1715476232416,-187.84309,0.00019973,2]
[326832674,1715476232425,-260.84950406,0.00019973,2]
[326832675,1715476232435,-161.964748,0.00019973,2]
[326832676,1715476232443,-161.964748,0.00019973,2]
[326832677,1715476232453,-155.03638033,0.00019974,2]
[326832678,1715476232462,-1578.94023336,0.00019991,2]
[326832679,1715476232471,-285.98082131,0.0002,2]
[326832680,1715476232480,-2012.10118066,0.0002,2]
[326832681,1715476232489,-154.75239617,0.0002,2]
[326832682,1715476232498,-230.53822,0.0002,2]
[326832683,1715476232507,-166.812584,0.0002,2]
[326832684,1715476232516,-238.5745,0.000203,2]
[326832685,1715476232525,-313.67693846,0.00020401,2]
[326832686,1715476232534,-154.95351395,0.00020401,2]
[326832687,1715476232543,-225.01030393,0.00020401,7]
[326832688,1715476232552,-766.4093172,0.00020402,2]
[326832689,1715476232561,-317.94087052,0.00020403,2]
[326832690,1715476232570,-348.97229622,0.00020403,2]
[326833181,1715476242970,-172.30777111,0.00020198,2]
[326833183,1715476242979,-216.52283811,0.00020403,2]
[326833185,1715476242989,-446.21968531,0.00020403,2]
[326833722,1715476642290,233.154139,0.00016953,2]
[326833723,1715476852611,2610.0,0.00016953,2]
[326833783,1715477432391,-156.43338867,0.00017817,2]
[326833784,1715477432400,-530.24972462,0.00017854,2]
[326833785,1715477432409,-154.99111671,0.00017909,2]
[326833786,1715477432419,-155.08528139,0.00017909,2]
[326833787,1715477432428,-157.60208141,0.0001791,2]
[326833788,1715477432437,-167.52065492,0.0001791,2]
[326833789,1715477432449,-516.321286,0.0001791,2]
[326833790,1715477432480,-10353.79580002,0.0001791,2]
[326833791,1715477432489,-45270.75700551,0.00017911,2]
[326833851,1715477438400,-1705.05974779,0.00017911,2]
[326833853,1715477438412,-515.67612986,0.00017911,2]
[326833865,1715477441190,-422.44498482,0.00017911,2]
[326833908,1715477573140,266.80276716,0.00017906,7]
[326833909,1715477625232,6193.233046,0.00016945,2]
[326833919,1715477700715,1448.938979,0.0001,2]
[326833920,1715477713853,498.158198,0.00016933,2]
[326833926,1715478191974,249.079099,0.00016904,2]
[326833927,1715478452218,-833.48256303,0.00017547,2]
[326833928,1715478452242,-465.82350851,0.00017805,2]
[326833929,1715478452264,-62544.46430322,0.00017898,2]
[326833930,1715478452287,-20225.81205785,0.00017899,2]
[326833931,1715478452311,-1368.40842262,0.00017905,2]
[326833932,1715478452334,-347.01552078,0.00017906,2]
[326833933,1715478452357,-11037.63774094,0.00017907,2]
[326833934,1715478452381,-19485.44877841,0.00017908,2]
[326833935,1715478452403,-1138.95747687,0.00017956,2]
[326833936,1715478452427,-2601.22879423,0.00017956,2]
[326833937,1715478452452,-201.59388037,0.00017956,2]
[326833938,1715478452477,-701.68383945,0.00017956,2]
[326833939,1715478452502,-5669.0457216,0.00017957,2]
[326833940,1715478452527,-9387.04651107,0.00017958,2]
[326833986,1715478632671,-269.08334085,0.00018,2]
[326833988,1715478632681,-670.7526772,0.00018258,2]
[326833991,1715478632692,-153.0,0.00019589,2]
[326833994,1715478632703,-153.0,0.000196,2]
[326833995,1715478632713,-153.0,0.000196,2]
[326833996,1715478632723,-20225.81205785,0.00019999,2]
[326833997,1715478632732,-153.0,0.0002,2]
[326833998,1715478632742,-153.0,0.0002,2]
[326833999,1715478632751,-153.0,0.0002,2]
[326834000,1715478632761,-153.0,0.0002,2]
[326834001,1715478632770,-153.0,0.0002,2]
[326834002,1715478632780,-155.0519792,0.0002,2]
[326834003,1715478632790,-153.0,0.0002,2]
[326834004,1715478632800,-153.0,0.0002,2]
[326834005,1715478632809,-2012.23413501,0.0002,2]
[326834006,1715478632818,-154.75239617,0.00020194,2]
[326834007,1715478632828,-18569.24449774,0.00020196,2]
[326834009,1715478632837,-174.36505778,0.00020198,2]
[326834010,1715478632847,-153.0,0.000202,2]
[326834011,1715478632856,-153.0,0.000202,2]
[326834012,1715478632865,-153.0,0.000202,2]
[326834013,1715478632875,-153.0,0.000202,2]
[326834014,1715478632884,-306.0,0.000202,2]
[326834015,1715478632893,-153.0,0.000202,2]
[326834016,1715478632902,-306.0,0.000202,2]
[326834017,1715478632912,-153.0,0.000202,2]
[326834018,1715478632921,-153.0,0.000202,2]
[326834019,1715478632931,-153.0,0.000202,2]
[326834020,1715478632940,-153.0,0.000202,2]
[326834021,1715478632949,-153.0,0.000202,2]
[326834022,1715478632959,-153.0,0.000202,2]
[326834023,1715478632968,-153.0,0.000202,2]
[326834024,1715478632978,-153.0,0.000202,2]
[326834025,1715478632987,-500.0,0.00020401,2]
[326834026,1715478632996,-500.0,0.00020401,2]
[326834027,1715478633005,-500.0,0.00020401,2]
[326834028,1715478633015,-522.30592216,0.00020401,2]
[326834029,1715478633024,-33295.37465361,0.00020402,2]
[326834052,1715478638862,-4109.16328342,0.00020402,2]
[326834073,1715478640849,-304.71368244,0.00020402,2]
[326834093,1715478644125,-1204.18212563,0.00020402,2]
[326834136,1715479730941,154.75239617,9.999e-05,2]
[326834144,1715479832735,-150.0,0.000189,2]
[326834145,1715479832745,-233.129423,0.00019069,2]
[326834146,1715479832755,-189.39960416,0.00019389,2]
[326834147,1715479832764,-20225.81205785,0.00019585,2]
[326834148,1715479832774,-3448.5834596,0.00019586,2]
[326834149,1715479832783,-2012.23413501,0.0002,2]
[326834150,1715479832793,-154.75239617,0.00020197,2]
[326834151,1715479832802,-155.48537855,0.00020198,2]
[326834152,1715479832812,-833.48256303,0.0002025,2]
[326834153,1715479832821,-153.0,0.000203,2]
[326834154,1715479832830,-2515.68798652,0.00020402,2]
[326834155,1715479832840,-711.71273549,0.00020403,2]
[326834156,1715479832850,-154.94650593,0.00020403,2]
[326834157,1715479832859,-9768.1284504,0.00020403,2]
[326834158,1715479832869,-1557.30819098,0.00020405,10]
[326834159,1715479832878,-741.6963637,0.00020405,2]
[326834160,1715479832887,-433.93383374,0.00020405,2]
[326834161,1715479832897,-829.901,0.00020465,2]
[326834162,1715479832906,-829.902,0.00020465,2]
[326834163,1715479832916,-829.902,0.00020465,2]
[326834164,1715479832927,-829.901,0.00020465,2]
[326834165,1715479832937,-829.902,0.00020465,2]
[326834166,1715479832948,-154.6619177,0.00020548,2]
[326834167,1715479832957,-153.2765179,0.00020548,2]
[326834168,1715479832967,-153.0,0.00020548,2]
[326834169,1715479832976,-153.0,0.00020548,2]
[326834170,1715479832986,-153.0,0.00020548,2]
[326834171,1715479832995,-153.0,0.00020548,2]
[326834172,1715479833004,-284.48593494,0.00020888,2]
[326834173,1715479833013,-409.82935884,0.00020908,2]
[326834174,1715479833022,-154.86884746,0.00020909,2]
[326834175,1715479833031,-194.84050865,0.00020909,2]
[326834176,1715479833040,-586.34285989,0.00020909,2]
[326834177,1715479833049,-190.03407854,0.00020909,2]
[326834178,1715479833058,-155.24205222,0.00020909,2]
[326834179,1715479833067,-224.70065802,0.0002091,2]
[326834180,1715479833076,-2639.35001944,0.0002091,2]
[326834181,1715479833085,-3922.40497018,0.0002091,7]
[326834182,1715479833094,-3056.74707553,0.00020911,2]
[326834183,1715479833103,-1499.38611599,0.00020911,2]
[326834184,1715479833112,-154.98366878,0.00020911,2]
[326834185,1715479833121,-414.07539465,0.00020911,2]
[326834186,1715479833130,-1034.47166902,0.00020911,2]
[326834187,1715479833139,-59325.71232151,0.00020911,2]
[326834188,1715479833149,-500.0,0.00020911,2]
[326834189,1715479833158,-500.0,0.00020911,2]
[326834190,1715479833167,-502.29336658,0.00020911,2]
[326834191,1715479833176,-500.0,0.00020911,2]
[326834192,1715479833185,-2471.85189445,0.00020912,2]
[326834193,1715479833195,-944.65054149,0.00020912,2]
[326834194,1715479833204,-529.28692614,0.00020912,2]
[326834195,1715479833214,-1584.63400534,0.00020912,2]
[326834196,1715479833222,-7755.77781739,0.00020912,7]
[326834197,1715479833236,-346.33412619,0.00020912,7]
[326834209,1715479838765,-3108.14645269,0.00020912,7]
[326834211,1715479838776,-1295.44842742,0.00020912,7]
[326834213,1715479838788,-258.89243828,0.00020912,7]
[326834230,1715479841221,-1674.79371648,0.00020912,7]
[326834319,1715479863826,224.29401393,0.000136,2]
[326834324,1715480677458,286.76785856,0.00015,2]
[326834421,1715481043337,-2397.89329027,0.00019502,2]
[326834423,1715481043346,-5162.49593123,0.00019503,2]
[326834438,1715481046271,-3709.13819359,0.00019503,2]
[326834453,1715482184460,154.78330338,9.999e-05,2]
[326834454,1715482214088,808.77900756,9.999e-05,2]
[326834455,1715482230100,539.18600504,9.999e-05,2]
[326834480,1715482232158,364.58612671,9.999e-05,2]
[326834583,1715482246192,368.12342113,9.999e-05,2]
[326834586,1715482248107,449.32167087,9.999e-05,2]
[326834587,1715482266100,449.32167087,9.999e-05,2]
[326834588,1715482288063,206.96693214,9.999e-05,2]
[326834589,1715482288102,234.09659052,9.999e-05,2]
[326834590,1715482306128,234.09659052,9.999e-05,2]
[326834591,1715482317161,719.2075659,9.999e-05,2]
[326834592,1715482324101,234.09659052,9.999e-05,2]
[326834593,1715482346110,234.09659052,9.999e-05,2]
[326834595,1715482366106,234.09659052,9.999e-05,2]
[326834597,1715482384307,234.09659052,9.999e-05,2]
[326834599,1715482400115,234.09659052,9.999e-05,2]
[326834601,1715482420121,234.09659052,9.999e-05,2]
[326834603,1715482438120,373.83563018,9.999e-05,2]
[326834608,1715482517762,917.6749584,0.00017763,2]
[326834615,1715482658751,-195.0114314,0.00018077,2]
[326834616,1715482702137,504.8817656,0.00017757,2]
[326834617,1715482702162,178.6353617,0.00017757,2]
[326834618,1715482767394,150.0,0.00018,2]
[326834619,1715482767418,259.7,0.00018,2]
[326834620,1715482772230,2397.89329027,0.00017999,2]
[326834621,1715482929474,833.48256303,0.00017667,2]
[326834622,1715483289831,358.963721,0.00017511,2]
[326834637,1715483432474,-621.02303064,0.00018265,2]
[326834638,1715483432483,-580.19681866,0.00018384,2]
[326834640,1715483432493,-7886.43652278,0.00018475,2]
[326834642,1715483432502,-50559.83656519,0.00018476,2]
[326834657,1715483438719,-3108.14645269,0.00018475,2]
[326834661,1715483443733,-17117.66560516,0.00018475,2]
[326834662,1715483443742,-11984.62773803,0.00018476,2]
[326834663,1715483443752,-184.5977561,0.00018484,2]
[326834664,1715483443761,-154.78330338,0.00018595,2]
[326834665,1715483443770,-786.99478601,0.00018595,2]
[326834666,1715483443779,-155.00742447,0.00018811,2]
[326834667,1715483443788,-820.01567817,0.00018815,2]
[326834668,1715483443797,-1000.0,0.00019,2]
[326834669,1715483443806,-1000.0,0.00019,2]
[326834670,1715483443815,-500.0,0.00019178,2]
[326834671,1715483443824,-500.0,0.00019178,2]
[326834672,1715483443833,-500.0,0.00019178,2]
[326834673,1715483443842,-320.07532994,0.00019178,2]
[326834674,1715483443852,-153.0,0.000192,2]
[326834675,1715483443861,-154.9448499,0.000192,2]
[326834676,1715483443870,-633.43,0.000192,2]
[326834677,1715483443879,-153.0,0.000194,2]
[326834678,1715483443888,-965.34135486,0.00019865,2]
[326834679,1715483443897,-153.0,0.000199,2]
[326834680,1715483443907,-306.0,0.000199,2]
[326834681,1715483443916,-153.0,0.000199,2]
[326834682,1715483443925,-1654.80254189,0.00019987,2]
[326834683,1715483443934,-151.324713,0.00019988,2]
[326834684,1715483443943,-151.702231,0.00019988,2]
[326834685,1715483443952,-151.0,0.00019988,2]
[326834686,1715483443961,-151.0,0.00019988,2]
[326834687,1715483443970,-151.0,0.00019988,2]
[326834688,1715483443979,-151.0,0.00019988,2]
[326834689,1715483443988,-151.0,0.00019988,2]
[326834690,1715483443996,-180.87688,0.00019988,2]
[326834691,1715483444005,-151.0,0.00019988,2]
[326834692,1715483444014,-172.561384,0.00019988,2]
[326834693,1715483444023,-151.0,0.00019988,2]
[326834694,1715483444032,-151.0,0.00019988,2]
[326834695,1715483444041,-196.513038,0.00019988,2]
[326834696,1715483444050,-196.513038,0.00019988,2]
[326834697,1715483444059,-151.979188,0.00019988,2]
[326834698,1715483444068,-158.509241,0.00019988,2]
[326834699,1715483444077,-151.0,0.00019988,2]
[326834700,1715483444086,-151.0,0.00019988,2]
[326834701,1715483444095,-166.135353,0.00019988,2]
[326834702,1715483444104,-151.0,0.00019988,2]
[326834703,1715483444113,-151.455766,0.00019988,2]
[326834704,1715483444122,-151.0,0.00019988,2]
[326834705,1715483444131,-151.0,0.00019988,2]
[326834706,1715483444139,-311.238407,0.00019988,2]
[326834707,1715483444148,-311.238407,0.00019988,2]
[326834708,1715483444158,-311.238407,0.00019988,2]
[326834709,1715483444167,-311.238407,0.00019988,2]
[326834710,1715483444176,-151.0,0.00019988,2]
[326834711,1715483444186,-151.0,0.00019988,2]
[326834712,1715483444194,-601.109976,0.00019988,2]
[326834713,1715483444203,-601.109976,0.00019988,2]
[326834714,1715483444212,-601.109976,0.00019988,2]
[326834715,1715483444221,-601.109976,0.00019988,2]
[326834716,1715483444230,-691.924044,0.00019988,2]
[326834717,1715483444239,-161.057318,0.00019988,2]
[326834718,1715483444248,-691.924044,0.00019988,2]
[326834719,1715483444257,-161.057318,0.00019988,2]
[326834720,1715483444267,-691.924044,0.00019988,2]
[326834721,1715483444275,-691.924044,0.00019988,2]
[326834722,1715483444284,-161.057318,0.00019988,2]
[326834723,1715483444293,-161.057318,0.00019988,2]
[326834724,1715483444303,-151.0,0.00019988,2]
[326834725,1715483444312,-151.0,0.00019988,2]
[326834726,1715483444321,-184.754281,0.00019988,2]
[326834727,1715483444330,-3207.49633618,0.00019988,2]
[326834854,1715484093588,1579.70306251,9.999e-05,2]
[326834888,1715484191446,753.29959754,0.00017858,2]
[326834916,1715484358554,527.88053844,9.999e-05,2]
[326834973,1715484555881,412.9630023,9.999e-05,2]
[326835050,1715484632994,-286.818518,0.00017448,2]
[326835052,1715484633005,-19.03039393,0.00017658,2]
[326835198,1715484641875,-8e-07,0.00017658,2]
[326835244,1715484688506,24900.0,0.00016856,2]
[326835245,1715484816314,305.848912,0.00016978,2]
[326835246,1715484839112,286.818518,0.00016847,2]
[326835248,1715485004973,194.23254452,9.999e-05,2]
[326835249,1715485198630,154.75239617,9.999e-05,2]
[326835250,1715485217053,24136.7004025,0.00016736,2]
[326835312,1715485832703,-189.39960416,0.00017558,2]
[326835315,1715485832714,-833.48256303,0.00017613,2]
[326835316,1715485832723,-144.65599368,0.00017658,2]
[326835318,1715485832732,-2631.62253503,0.00017734,2]
[326835320,1715485832742,-20225.81205785,0.00017735,2]
[326835323,1715485832751,-7886.43652278,0.00017736,2]
[326835325,1715485832762,-197.94335054,0.00017736,2]
[326835326,1715485832771,-586.34285989,0.00017736,2]
[326835328,1715485832780,-411.16593848,0.00017736,2]
[326835331,1715485832790,-285.73380573,0.00017736,2]
[326835332,1715485832800,-154.9573631,0.00017736,2]
[326835334,1715485832809,-747.27102381,0.00017736,2]
[326835337,1715485832818,-156.36462238,0.00017737,2]
[326835338,1715485832827,-58417.40597059,0.00017738,2]
[326835348,1715485838724,-918.66807528,0.00017738,2]
[326835349,1715485838734,-154.86884746,0.00017834,2]
[326835350,1715485838743,-179.22986178,0.00017856,2]
[326835351,1715485838787,-702.11748921,0.00017856,2]
[326835439,1715485891448,3029.79,0.0001702,2]
[326835440,1715486006575,492.31289669,9.999e-05,2]
[326835441,1715486154446,708.68781589,9.999e-05,2]
[326835442,1715486208353,1576.78477591,0.0002,10]
[326835443,1715486409067,1401.26310756,9.999e-05,2]
[326835444,1715486696875,155.48537855,0.000136,2]
[326835445,1715486716114,16227.8362927,9.999e-05,2]
[326835461,1715487032029,-833.48256303,0.00017707,2]
[326835462,1715487032039,-618.038765,0.00017856,2]
[326835463,1715487032048,-154.98366878,0.00017856,2]
[326835464,1715487032057,-512.62326743,0.00017856,2]
[326835465,1715487032065,-154.80372402,0.00018,2]
[326835466,1715487032074,-340.03407854,0.00018,2]
[326835467,1715487032083,-20225.81205785,0.00018882,2]
[326835468,1715487032092,-154.97087017,0.00018883,2]
[326835469,1715487032102,-1687.24563379,0.00018883,2]
[326835470,1715487032111,-741.6963637,0.00018883,2]
[326835471,1715487032120,-550.83856613,0.00018883,2]
[326835472,1715487032130,-718.20948238,0.00018883,2]
[326835473,1715487032139,-1406.195946,0.00018883,2]
[326835474,1715487032148,-2397.03538122,0.00018883,2]
[326835475,1715487032158,-494.18141025,0.00018884,2]
[326835476,1715487032167,-2481.52109476,0.00018885,2]
[326835477,1715487032176,-1583.87117619,0.00018885,2]
[326835478,1715487032186,-3581.49031651,0.00018885,2]
[326835498,1715487037911,-1331.94426912,0.00018885,2]
[326835499,1715487037967,-2743.2813244,0.00018885,2]
[326835518,1715487043105,-408.56349826,0.00018354,2]
[326835520,1715487043115,-3140.79343314,0.00018885,2]
[326835531,1715487156928,1714.77364578,9.999e-05,2]
[326835547,1715487799910,183.07,0.000266,120]
[326835548,1715487959425,829.901,0.00026068,120]
[326835549,1715487959480,829.902,0.00026068,120]
[326835550,1715487959532,829.902,0.00026068,120]
[326835551,1715487959595,829.901,0.00026068,120]
[326835552,1715487959642,829.902,0.00026068,120]
[326835893,1715488287916,154.75239617,9.999e-05,2]
[326835894,1715488313591,1714.77364578,9.999e-05,2]
[326835895,1715488314330,1093.74406473,9.999e-05,2]
[326835896,1715488317201,154.75239617,9.999e-05,2]
[326835897,1715488325607,527.88053844,9.999e-05,2]
[326835898,1715488853397,154.75239617,9.999e-05,2]
[326835899,1715489107231,833.42845868,0.00010742,2]
[326835931,1715489432353,-507.67221638,0.0001704,2]
[326835933,1715489432363,-20225.81205785,0.00017129,2]
[326835934,1715489432373,-35259.59384234,0.0001713,2]
[326836050,1715489443376,-6079.4074666,0.0001714,2]
[326836051,1715489443386,-189.39960416,0.00017903,2]
[326836052,1715489443395,-156.04543997,0.00017999,2]
[326836053,1715489443405,-11037.63774094,0.00018008,2]
[326836054,1715489443415,-173.33652062,0.00018696,2]
[326836055,1715489443425,-153.0,0.000187,2]
[326836056,1715489443435,-153.0,0.000187,2]
[326836057,1715489443444,-153.0,0.00018778,2]
[326836058,1715489443454,-238.7156,0.00018791,2]
[326836059,1715489443465,-1900.91629937,0.00018872,2]
[326836060,1715489443475,-773.10998367,0.00018874,2]
[326836061,1715489443484,-188.75700726,0.00018874,2]
[326836062,1715489443493,-529.56026883,0.00018874,2]
[326836063,1715489443502,-416.18681066,0.00018875,2]
[326836064,1715489443512,-894.51331095,0.00018876,2]
[326836065,1715489443521,-29517.59980278,0.00018877,2]
[326836066,1715489443530,-168.22441991,0.00018877,2]
[326836067,1715489443539,-255.25398311,0.00018877,2]
[326836068,1715489443548,-2175.02646061,0.00018877,2]
[326836069,1715489443557,-207.990866,0.00018877,2]
[326836070,1715489443567,-207.990866,0.00018877,2]
[326836071,1715489443576,-151.0,0.00018877,2]
[326836072,1715489443585,-151.948699,0.00018877,2]
[326836073,1715489443594,-151.0,0.00018877,2]
[326836074,1715489443604,-151.0,0.00018877,2]
[326836075,1715489443612,-213.068697,0.00018877,2]
[326836076,1715489443621,-213.068697,0.00018877,2]
[326836077,1715489443631,-151.0,0.00018877,2]
[326836078,1715489443640,-184.411734,0.00018877,2]
[326836079,1715489443651,-184.411734,0.00018877,2]
[326836080,1715489443660,-151.0,0.00018877,2]
[326836081,1715489443670,-151.0,0.00018877,2]
[326836082,1715489443679,-151.0,0.00018877,2]
[326836083,1715489443689,-151.0,0.00018877,2]
[326836084,1715489443698,-151.0,0.00018877,2]
[326836085,1715489443707,-151.0,0.00018877,2]
[326836086,1715489443718,-256.540725,0.00018877,2]
[326836087,1715489443727,-256.540725,0.00018877,2]
[326836088,1715489443736,-154.557027,0.00018877,2]
[326836089,1715489443745,-206.119104,0.00018877,2]
[326836090,1715489443754,-206.119104,0.00018877,2]
[326836091,1715489443763,-640.795431,0.00018877,2]
[326836092,1715489443772,-640.795431,0.00018877,2]
[326836093,1715489443782,-180.730298,0.00018877,2]
[326836094,1715489443792,-561.089235,0.00018877,2]
[326836095,1715489443801,-151.0,0.00018877,2]
[326836096,1715489443810,-151.0,0.00018877,2]
[326836097,1715489443820,-561.089235,0.00018877,2]
[326836098,1715489443829,-151.0,0.00018877,2]
[326836099,1715489443838,-820.44873448,0.00018886,2]
[326836102,1715490070974,3895.0,0.000266,120]
[326836103,1715490267539,233.1294239,0.00016962,2]
[326836122,1715490632796,-20225.81205785,0.00017936,2]
[326836123,1715490632809,-62544.46430322,0.00017936,2]
[326836124,1715490632821,-11037.63774094,0.00017936,2]
[326836125,1715490632834,-7886.43652278,0.00017937,2]
[326836126,1715490632846,-59336.07404587,0.00017937,2]
[326836127,1715490632857,-156.36462238,0.00017942,2]
[326836128,1715490632870,-1151.1912033,0.00017945,2]
[326836129,1715490632881,-4319.6521415,0.00017959,2]
[326836130,1715490632893,-151.0,0.00017967,2]
[326836131,1715490632904,-151.0,0.00017967,2]
[326836132,1715490632916,-1106.3321783,0.00017973,2]
[326836133,1715490632928,-833.48256303,0.00018448,2]
[326836134,1715490632940,-173.33652063,0.00018697,2]
[326836135,1715490632951,-644.31660892,0.00018872,2]
[326836136,1715490632963,-230.886653,0.00018872,2]
[326836137,1715490632975,-230.886653,0.00018872,2]
[326836138,1715490632987,-576.715888,0.00018872,2]
[326836139,1715490632999,-187.19178,0.00018872,2]
[326836140,1715490633010,-187.19178,0.00018872,2]
[326836141,1715490633022,-576.715888,0.00018872,2]
[326836142,1715490633033,-504.980312,0.00018872,2]
[326836143,1715490633045,-151.0,0.00018872,2]
[326836144,1715490633056,-504.980312,0.00018872,2]
[326836145,1715490633068,-151.0,0.00018872,2]
[326836146,1715490633080,-191.761827,0.00018872,2]
[326836147,1715490633091,-191.761827,0.00018872,2]
[326836148,1715490633103,-124.20180701,0.00018886,2]
[326836149,1715490633115,-269.08334085,0.00018918,2]
[326836150,1715490633127,-153.0,0.00019,2]
[326836151,1715490633139,-154.6619177,0.00019,2]
[326836152,1715490633151,-153.2765179,0.00019,2]
[326836153,1715490633162,-284.55118921,0.00019177,2]
[326836154,1715490633174,-2422.29594172,0.00019177,2]
[326836155,1715490633185,-151.0,0.00019177,2]
[326836156,1715490633197,-185.507193,0.00019177,2]
[326836157,1715490633209,-185.507193,0.00019177,2]
[326836158,1715490633220,-151.0,0.00019177,2]
[326836159,1715490633232,-151.0,0.00019177,2]
[326836160,1715490633243,-151.0,0.00019177,2]
[326836161,1715490633255,-184.294571,0.00019177,2]
[326836162,1715490633269,-151.0,0.00019177,2]
[326836163,1715490633280,-158.236448,0.00019177,2]
[326836164,1715490633292,-151.0,0.00019177,2]
[326836165,1715490633303,-201.423656,0.00019178,2]
[326836166,1715490633315,-151.0,0.00019178,2]
[326836167,1715490633327,-151.0,0.00019178,2]
[326836168,1715490633338,-151.0,0.00019178,2]
[326836169,1715490633349,-151.0,0.00019178,2]
[326836170,1715490633361,-151.0,0.00019178,2]
[326836171,1715490633373,-151.0,0.00019178,2]
[326836172,1715490633384,-151.0,0.00019178,2]
[326836173,1715490633396,-151.0,0.00019178,2]
[326836174,1715490633407,-151.0,0.00019178,2]
[326836175,1715490633419,-151.0,0.00019178,2]
[326836176,1715490633431,-151.0,0.00019178,2]